bitfinex-derivatives/quotes_ETHF0:USTF0_20250712
["timestamp","ask_amount","ask_price","bid_price","bid_amount"]
[1752310951578,49.65039577,2965.0,2964.9,0.67427]
[1752310951778,49.65039577,2965.0,2964.9,1.64627]
[1752310952086,0.67434,2964.6,2964.5,0.67435]
[1752310952280,50.26788577,2964.6,2964.5,0.67435]
[1752310952483,50.26788577,2964.6,2964.5,1.64635]
[1752310952684,50.26788577,2964.6,2964.5,0.972]
[1752310952879,50.26788577,2964.6,2964.5,1.64636]
[1752310953081,50.26788577,2964.6,2964.5,0.972]
[1752310955683,50.26788577,2964.6,2964.5,1.64636]
[1752310956177,50.26788577,2964.6,2964.5,0.972]
[1752310956377,50.26788577,2964.6,2964.3,3.38307479]
[1752310956378,2.95348,2964.4,2964.3,0.972]
[1752310956584,50.26592577,2964.4,2964.3,1.6325]
[1752310957385,53.47372577,2964.4,2964.3,0.972]
[1752310958180,53.47372577,2964.4,2964.1,0.9638]
[1752310958181,1.6562,2964.3,2964.1,0.972]
[1752310958377,49.59357577,2964.2,2964.1,0.972]
[1752310958579,50.26697577,2964.2,2964.1,0.972]
[1752310958983,50.26697577,2964.2,2964.1,2.30695]
[1752310959182,50.26697577,2964.2,2964.1,3.27075]
[1752310962186,50.26697577,2964.2,2963.8,1.6325]
[1752310962187,0.6229,2963.9,2963.8,1.6325]
[1752310962382,48.0797,2963.9,2963.8,3.27082]
[1752310962584,48.7542,2963.9,2963.8,3.27082]
[1752310963787,48.0797,2963.9,2963.8,3.27082]
[1752310964288,46.474,2963.9,2963.8,6.47862]
[1752310968292,45.74429,2963.9,2963.8,6.47862]
[1752310968490,4.8201,2964.5,2964.4,2.26798]
[1752310968794,51.2911,2964.5,2964.4,3.22578]
[1752310969497,50.6328,2964.5,2964.4,3.22578]
[1752310969991,47.425,2964.5,2964.4,3.22578]
[1752310974090,46.471,2964.5,2964.4,3.22578]
[1752310975692,1.6123,2965.0,2964.9,0.67427]
[1752310975999,48.0763,2965.0,2964.9,3.22567]
[1752310978496,46.464,2965.0,2964.9,3.22567]
[1752310978696,47.418,2965.0,2964.9,3.22567]
[1752310979299,46.464,2965.0,2964.9,3.22567]
[1752310979493,47.418,2965.0,2964.9,3.22567]
[1752310984194,47.418,2965.0,2964.9,2.25067]
[1752310984397,48.76935,2965.0,2964.9,1.63207]
[1752310984599,48.76935,2965.0,2964.9,0.9578]
[1752310984904,48.76935,2965.0,2964.9,1.63207]
[1752310986002,48.76935,2965.0,2964.9,2.25067]
[1752310986396,48.76935,2965.0,2964.9,0.9578]
[1752310986896,1.33259,2964.8,2964.7,1.5936]
[1752310987106,50.24913577,2964.8,2964.7,0.9578]
[1752310987403,2.96374,2964.7,2964.6,1.63213]
[1752310988702,2.96374,2964.7,2964.6,3.22573]
[1752310989198,1.6123,2964.7,2964.6,3.22573]
[1752310989501,47.4,2964.8,2964.7,3.22571]
[1752310989702,46.446,2964.8,2964.7,3.22571]
[1752310989998,47.4,2964.8,2964.7,3.22571]
[1752310990208,48.07429,2964.8,2964.7,3.22571]
[1752310991304,48.07429,2964.8,2964.7,2.5514]
[1752310991609,48.75139,2964.8,2964.7,1.5764]
[1752310991900,49.59083577,2964.8,2964.7,1.5764]
[1752310993904,49.59083577,2964.8,2964.7,2.5514]
[1752310994108,49.59083577,2964.8,2964.7,3.22571]
[1752310994109,48.07429,2964.8,2964.7,3.22571]
[1752310994903,48.07429,2964.8,2964.7,2.5514]
[1752310995100,48.75129,2964.8,2964.7,3.22571]
[1752310995301,48.07429,2964.8,2964.7,3.22571]
[1752310995701,48.07199265,2964.8,2964.7,3.22571]
[1752310996306,48.74899265,2964.8,2964.7,2.5514]
[1752310996505,2.93301,2964.7,2964.6,1.33283]
[1752310996809,2.93301,2964.7,2964.6,2.32453]
[1752310997204,2.93301,2964.7,2964.6,3.24203]
[1752310997703,2.25601,2964.7,2964.6,3.24203]
[1752310999409,2.25601,2964.7,2964.6,3.24204]
[1752311000402,2.25601,2964.7,2964.6,2.5677]
[1752311000805,2.93301,2964.7,2964.6,3.24204]
[1752311003108,2.25601,2964.7,2964.6,3.24204]
[1752311005013,0.9453,2964.7,2964.6,3.24201]
[1752311005514,47.11800265,2964.8,2964.7,1.33281]
[1752311005708,47.11800265,2964.8,2964.7,3.24201]
[1752311006013,48.06330265,2964.8,2964.7,3.24201]
[1752311007210,48.74030265,2964.8,2964.7,3.24201]
[1752311007712,48.06330265,2964.8,2964.7,3.24201]
[1752311008719,47.38900265,2964.8,2964.7,3.24201]
[1752311008915,46.44370265,2964.8,2964.7,3.24201]
[1752311009115,47.38900265,2964.8,2964.7,3.24201]
[1752311009419,47.3683,2964.8,2964.7,3.24201]
[1752311009917,48.04259,2964.8,2964.7,3.24201]
[1752311013221,47.3683,2964.8,2964.7,3.24201]
[1752311013722,48.04259,2964.8,2964.7,3.24201]
[1752311015319,48.71959,2964.8,2964.7,2.25031]
[1752311016320,48.71959,2964.8,2964.7,3.24201]
[1752311016713,2.93306,2964.5,2964.4,1.6502]
[1752311016917,50.18650577,2964.5,2964.4,1.6502]
[1752311017114,50.18650577,2964.5,2964.4,2.32457]
[1752311017314,50.18650577,2964.5,2964.4,2.5677]
[1752311017916,50.18650577,2964.5,2964.4,3.24208]
[1752311018726,1.5817,2964.3,2964.2,1.576]
[1752311018920,50.18455577,2964.3,2964.2,2.25042]
[1752311019126,50.18455577,2964.3,2964.2,3.24212]
[1752311019619,49.34511,2964.3,2964.2,2.5677]
[1752311019825,50.18455577,2964.3,2964.2,2.5677]
[1752311020226,50.18455577,2964.3,2964.2,3.24213]
[1752311020428,50.18455577,2964.3,2964.2,2.5677]
[1752311020726,49.34511,2964.3,2964.2,3.24213]
[1752311020925,50.18455577,2964.3,2964.2,2.5677]
[1752311021225,49.34511,2964.3,2964.2,3.24213]
[1752311021426,49.50755577,2964.3,2964.2,3.24213]
[1752311021625,49.50755577,2964.3,2964.2,2.5677]
[1752311021927,1.5817,2964.0,2963.9,1.66618]
[1752311022127,48.82914577,2964.0,2963.9,2.32468]
[1752311022323,47.9897,2964.0,2963.9,3.24218]
[1752311022520,2.2562,2963.9,2963.8,1.6502]
[1752311022723,3.09564577,2963.9,2963.8,1.6502]
[1752311022923,2.2562,2963.9,2963.8,1.6502]
[1752311023227,1.5817,2963.9,2963.8,3.28452]
[1752311023825,47.9907,2963.9,2963.8,3.28452]
[1752311024826,47.3543,2963.9,2963.8,3.28452]
[1752311025125,46.409,2963.9,2963.8,3.28452]
[1752311026830,47.4034,2963.9,2963.8,3.28452]
[1752311028731,48.24284577,2963.9,2963.8,3.28452]
[1752311028930,49.59144577,2963.9,2963.8,2.29282]
[1752311029632,49.59144577,2963.9,2963.8,0.9598]
[1752311029823,0.628,2963.5,2963.4,3.8111]
[1752311030020,48.86784577,2963.5,2963.4,4.48571]
[1752311030633,49.54194577,2963.5,2963.4,6.34451]
[1752311031131,50.21653577,2963.5,2963.4,5.44551]
[1752311031331,50.21653577,2963.5,2963.4,1.5631]
[1752311032032,50.21653577,2963.5,2963.4,0.9598]
[1752311032434,50.21653577,2963.5,2963.4,1.63441]
[1752311033228,50.21653577,2963.5,2963.4,0.9598]
[1752311034031,50.21653577,2963.5,2963.4,1.63441]
[1752311034224,49.54194577,2963.5,2963.4,1.63441]
[1752311034429,49.54194577,2963.5,2963.4,2.23771]
[1752311034632,49.54194577,2963.5,2963.4,3.13671]
[1752311034833,48.0284,2963.5,2963.4,3.13671]
[1752311035230,48.70299,2963.5,2963.4,3.13671]
[1752311035428,49.37709,2963.5,2963.4,3.13671]
[1752311035632,49.37709,2963.5,2963.4,2.23771]
[1752311036032,49.37709,2963.5,2963.4,3.13671]
[1752311036230,48.7025,2963.5,2963.4,3.13671]
[1752311036431,49.54194577,2963.5,2963.4,1.63441]
[1752311036633,50.21653577,2963.5,2963.4,0.9598]
[1752311037031,50.21653577,2963.5,2963.4,1.63441]
[1752311037232,50.21653577,2963.5,2963.4,0.9598]
[1752311037734,50.21653577,2963.5,2963.4,1.63441]
[1752311038035,50.21653577,2963.5,2963.4,3.13671]
[1752311038036,49.54194577,2963.5,2963.4,3.13671]
[1752311038333,50.21653577,2963.5,2963.4,3.13671]
[1752311039735,49.54194577,2963.5,2963.4,3.13671]
[1752311039935,48.0284,2963.5,2963.4,3.13671]
[1752311042041,46.402,2963.5,2963.4,3.13671]
[1752311043545,2.29687,2964.1,2964.0,1.27775]
[1752311043840,48.0204,2964.1,2964.0,3.13655]
[1752311044239,1.51384577,2964.4,2964.3,3.13651]
[1752311044240,1.6224,2964.4,2964.3,3.13651]
[1752311044437,48.0194,2964.4,2964.3,3.13651]
[1752311045535,46.397,2964.4,2964.3,3.13651]
[1752311047936,47.3914,2964.4,2964.3,3.13651]
[1752311053051,48.06578,2964.4,2964.3,3.13651]
[1752311053347,48.068,2964.4,2964.3,3.13651]
[1752311053547,47.3914,2964.4,2964.3,3.13651]
[1752311056555,48.068,2964.4,2964.3,3.13651]
[1752311056955,48.068,2964.4,2964.3,2.23751]
[1752311057555,48.74238,2964.4,2964.3,2.23751]
[1752311057851,48.74238,2964.4,2964.3,0.67441]
[1752311059054,47.3914,2964.4,2964.3,3.26461]
[1752311059350,48.06578,2964.4,2964.3,3.26461]
[1752311059951,48.74218,2964.4,2964.3,3.26461]
[1752311062455,1.6151,2964.0,2963.9,6.4725]
[1752311064954,0.9667,2964.0,2963.9,6.4725]
[1752311065155,46.366,2964.1,2964.0,1.31757]
[1752311065355,47.3327,2964.1,2964.0,2.27587]
[1752311065555,47.3327,2964.1,2964.0,3.26467]
[1752311065858,0.9667,2964.4,2964.3,3.26461]
[1752311066059,48.00409,2964.4,2964.3,3.26461]
[1752311067957,48.00408,2964.4,2964.3,3.26461]
[1752311069860,47.3297,2964.4,2964.3,3.26461]
[1752311070559,46.363,2964.4,2964.3,3.26461]
[1752311071059,47.03738,2964.4,2964.3,3.26461]
[1752311071260,48.00408,2964.4,2964.3,3.26461]
[1752311073564,48.68048,2964.4,2964.3,0.9888]
[1752311073860,48.68048,2964.4,2964.3,1.66321]
[1752311075059,48.0061,2964.4,2964.3,2.30631]
[1752311075266,47.3297,2964.4,2964.3,3.26461]
[1752311076866,48.00408,2964.4,2964.3,3.26461]
[1752311077059,47.3297,2964.4,2964.3,3.26461]
[1752311077565,46.363,2964.4,2964.3,3.26461]
[1752311078764,5.49721,2964.8,2964.7,3.26451]
[1752311078962,52.63605526,2964.8,2964.7,3.26451]
[1752311079673,53.31245526,2964.8,2964.7,2.5902]
[1752311079971,53.31245526,2964.8,2964.7,0.9888]
[1752311080170,53.31245526,2964.8,2964.7,1.66311]
[1752311081175,53.31245526,2964.8,2964.7,0.9888]
[1752311084176,53.31245526,2964.8,2964.7,1.6319]
[1752311084476,53.31245526,2964.8,2964.7,2.30621]
[1752311084678,53.31245526,2964.8,2964.7,1.6319]
[1752311084875,52.63605526,2964.8,2964.7,3.26451]
[1752311086177,53.31255526,2964.8,2964.7,3.26451]
[1752311088083,52.63605526,2964.8,2964.7,3.26451]
[1752311088282,51.96174526,2964.8,2964.7,3.26451]
[1752311088471,50.34664526,2964.8,2964.7,3.26451]
[1752311088775,5.02416843,2965.2,2964.9,0.6613]
[1752311088986,5.02416843,2965.2,2965.1,4.14686577]
[1752311089173,3.2078,2965.2,2965.1,4.14686577]
[1752311089377,3.2078,2965.2,2965.1,3.30742]
[1752311093184,0.6566,2966.0,2965.9,0.6613]
[1752311093381,24.7386,2966.0,2965.9,5.53284]
[1752311093588,24.7386,2966.0,2965.9,6.51504]
[1752311094489,1.5766,2966.0,2965.9,6.51504]
[1752311097589,2.5391,2966.0,2965.9,6.51504]
[1752311100086,2.5391,2966.0,2965.9,5.53284]
[1752311100690,2.5391,2966.0,2965.9,6.51504]
[1752311101186,1.5766,2966.0,2965.9,6.51504]
[1752311101788,2.5391,2966.0,2965.9,6.51504]
[1752311107698,1.5766,2966.0,2965.9,6.51504]
[1752311107899,47.213,2966.4,2966.3,2.6332]
[1752311108199,1.5766,2966.4,2966.3,3.30715]
[1752311108391,2.5391,2966.4,2966.3,3.30715]
[1752311110296,1.5766,2966.4,2966.3,3.30715]
[1752311110497,1.5766,2966.4,2966.3,6.51495]
[1752311113601,2.4904,2966.4,2966.3,6.51495]
[1752311113903,1.5766,2966.4,2966.3,6.51495]
[1752311116702,2.4901,2966.6,2966.5,3.1595]
[1752311116906,1.5763,2966.6,2966.5,3.1595]
[1752311117103,0.9436,2966.6,2966.5,3.1595]
[1752311118501,2.4901,2966.6,2966.5,3.1595]
[1752311118705,3.16398,2966.6,2966.5,3.1595]
[1752311118907,2.4901,2966.6,2966.5,3.1595]
[1752311119699,2.4901,2966.6,2966.5,2.4856]
[1752311119899,2.4901,2966.4,2966.3,6.36733]
[1752311131223,3.16403,2966.4,2966.3,5.42853]
[1752311132017,3.16403,2966.4,2966.3,6.36733]
[1752311132521,3.16403,2966.4,2966.3,3.2078]
[1752311132721,1.3067,2966.2,2966.1,0.67399]
[1752311132922,1.3067,2966.2,2966.1,1.57089]
[1752311132923,49.30994577,2966.2,2966.1,1.57089]
[1752311133320,50.25354577,2966.2,2966.1,1.57089]
[1752311135932,50.25354577,2966.2,2966.1,2.22079]
[1752311136134,50.25354577,2966.2,2966.1,3.15959]
[1752311136330,49.4141,2966.2,2966.1,3.15959]
[1752311136530,50.25354577,2966.2,2966.1,3.15959]
[1752311138436,49.57954577,2966.2,2966.1,3.15959]
[1752311138633,46.25,2966.2,2966.1,3.15959]
[1752311138832,1.5763,2966.5,2966.4,3.15953]
[1752311139039,47.8243,2966.5,2966.4,6.36733]
[1752311142740,48.60961316,2966.5,2966.4,6.36733]
[1752311144741,49.55411316,2966.5,2966.4,6.36733]
[1752311147141,46.235,2966.8,2966.7,0.67386]
[1752311147339,46.235,2966.8,2966.7,6.36976]
[1752311147340,47.93154837,2966.8,2966.7,6.36976]
[1752311147535,0.9115,2967.1,2967.0,0.67379]
[1752311147736,46.233,2967.2,2967.1,1.62177]
[1752311147941,47.1445,2967.2,2967.1,3.16187]
[1752311149742,48.089,2967.2,2967.1,3.16187]
[1752311149940,2.5099,2967.0,2966.9,1.31569]
[1752311150141,48.7359,2967.0,2966.9,3.16189]
[1752311150544,49.40969,2967.0,2966.9,3.16189]
[1752311150842,49.40969,2967.0,2966.7,3.2078]
[1752311150843,3.18374,2966.9,2966.8,0.67383]
[1752311151044,46.226,2967.0,2966.7,3.2078]
[1752311151045,3.07868577,2966.8,2966.7,4.52354]
[1752311151245,50.24818577,2966.8,2966.7,5.47154]
[1752311151646,49.57434577,2966.8,2966.7,5.47154]
[1752311152145,50.24818577,2966.8,2966.7,5.47154]
[1752311152542,50.24818577,2966.8,2966.7,3.2078]
[1752311153145,3.1838,2966.5,2966.4,0.6419]
[1752311153443,3.18383,2966.4,2966.3,5.47163]
[1752311154044,3.18383,2966.4,2966.3,4.52363]
[1752311155049,2.5099,2966.4,2966.3,4.52363]
[1752311155550,3.18383,2966.4,2966.3,4.52363]
[1752311156049,2.5099,2966.4,2966.3,4.52363]
[1752311156358,2.5099,2966.4,2966.3,5.47163]
[1752311157445,48.7289,2967.1,2967.0,2.21389]
[1752311157649,48.7289,2967.1,2967.0,6.36969]
[1752311158355,46.219,2967.1,2967.0,7.20913577]
[1752311158848,1.5984,2967.4,2967.3,0.67372]
[1752311159048,0.6539,2967.2,2967.1,0.67376]
[1752311159348,47.8154,2967.2,2967.1,3.16186]
[1752311159553,48.7269,2967.2,2967.1,3.16186]
[1752311160046,49.56634577,2967.2,2967.1,2.26366]
[1752311160251,3.18367,2967.1,2967.0,3.2078]
[1752311160450,2.52984,2966.8,2966.7,0.67384]
[1752311160751,0.9445,2966.6,2966.5,0.67388]
[1752311161053,48.48828,2966.6,2966.5,0.67388]
[1752311161249,49.39978,2966.6,2966.5,0.67388]
[1752311161549,2.5099,2966.6,2966.5,0.67388]
[1752311162048,3.34934577,2966.6,2966.5,1.31578]
[1752311162354,3.34934577,2966.6,2966.5,2.26378]
[1752311162554,3.34934577,2966.6,2966.5,0.67391]
[1752311162744,1.32781,2966.5,2966.4,0.67391]
[1752311162949,48.7219,2966.5,2966.4,0.67391]
[1752311163349,49.39581,2966.5,2966.4,0.67391]
[1752311163550,48.7219,2966.5,2966.4,0.67391]
[1752311163850,48.7219,2966.5,2966.4,1.31581]
[1752311164252,49.3958,2966.5,2966.4,1.31581]
[1752311164555,49.3958,2966.5,2966.4,0.6419]
[1752311164757,49.3958,2966.5,2966.3,4.1558]
[1752311164758,3.18383,2966.4,2966.3,3.2078]
[1752311165755,1.3279,2966.1,2966.0,2.2639]
[1752311165958,49.3949,2966.1,2966.0,3.1621]
[1752311166356,48.7209,2966.1,2966.0,3.1621]
[1752311168059,3.18392,2966.0,2965.9,3.2078]
[1752311168259,2.5099,2966.0,2965.9,3.88184]
[1752311168459,3.18392,2966.0,2965.9,5.47174]
[1752311168658,1.32801,2965.6,2965.5,4.52382]
[1752311168860,49.39501,2965.6,2965.5,3.8497]
[1752311169660,49.39501,2965.6,2965.5,4.52383]
[1752311170162,49.39501,2965.6,2965.5,3.8497]
[1752311171462,49.39501,2965.6,2965.5,4.52383]
[1752311171664,48.7209,2965.6,2965.5,6.37003]
[1752311172160,47.7764,2965.6,2965.5,6.37003]
[1752311172361,46.212,2965.8,2965.7,1.5899]
[1752311172665,2.23942,2966.0,2965.9,3.16214]
[1752311172961,3.18392,2966.0,2965.9,3.16214]
[1752311173367,49.39592,2966.0,2965.9,1.5899]
[1752311174161,49.39592,2966.0,2965.9,3.16214]
[1752311175270,48.7219,2966.0,2965.9,3.16214]
[1752311175756,47.7774,2966.0,2965.9,3.16214]
[1752311175958,49.42482,2966.0,2965.9,3.16214]
[1752311177265,49.42482,2966.0,2965.9,2.26394]
[1752311177860,0.67404,2965.9,2965.8,0.67405]
[1752311178065,3.25694,2965.9,2965.8,0.67405]
[1752311178368,3.25694,2965.9,2965.8,2.22375]
[1752311179767,2.5829,2965.9,2965.8,2.22375]
[1752311179968,2.5829,2965.9,2965.8,3.13525]
[1752311180468,3.25694,2965.9,2965.8,3.13525]
[1752311184270,2.27199,2965.7,2965.6,2.22379]
[1752311184476,49.46899,2965.7,2965.6,3.13529]
[1752311185373,49.46899,2965.7,2965.6,1.5497]
[1752311186069,49.46899,2965.7,2965.6,2.22381]
[1752311187071,49.46899,2965.7,2965.6,1.5497]
[1752311187272,49.46899,2965.7,2965.6,2.22381]
[1752311187473,49.46899,2965.7,2965.6,1.5497]
[1752311187775,49.46899,2965.7,2965.6,2.22381]
[1752311188275,49.46899,2965.7,2965.6,1.5497]
[1752311188469,3.25701,2965.6,2965.5,4.7575]
[1752311188670,3.25701,2965.6,2965.5,6.34313]
[1752311191075,2.5829,2965.6,2965.5,6.34313]
[1752311191472,3.25701,2965.6,2965.5,6.34313]
[1752311191670,2.5829,2965.6,2965.5,6.34313]
[1752311191970,46.21,2965.8,2965.7,2.20029]
[1752311192175,46.21,2965.8,2965.7,3.97580584]
[1752311192670,2.5829,2966.2,2966.1,1.2887]
[1752311192977,50.24658689,2966.2,2966.1,3.1352]
[1752311193171,49.46687,2966.2,2966.1,3.1352]
[1752311194675,49.46687,2966.2,2966.1,2.4612]
[1752311194973,3.2569,2966.1,2966.0,2.2237]
[1752311195276,2.5829,2966.1,2966.0,2.2237]
[1752311195477,2.5829,2966.1,2966.0,3.1352]
[1752311196473,3.2569,2966.1,2966.0,3.1352]
[1752311196675,3.2569,2966.1,2966.0,1.5497]
[1752311196875,3.2569,2966.1,2966.0,2.22372]
[1752311197380,3.2569,2966.1,2966.0,3.13522]
[1752311197680,2.5829,2966.1,2966.0,3.13522]
[1752311199879,46.204,2966.1,2966.0,2.4612]
[1752311200077,1.6095,2966.5,2966.4,3.13513]
[1752311200277,48.59428132,2966.5,2966.4,3.13513]
[1752311201783,47.60928132,2966.5,2966.4,3.13513]
[1752311201985,46.98478132,2966.5,2966.4,3.13513]
[1752311202182,46.204,2966.5,2966.4,3.13513]
[1752311204885,47.189,2966.5,2966.4,3.13513]
[1752311211390,48.1517,2966.5,2966.4,2.22363]
[1752311211583,48.82561,2966.5,2966.4,0.67393]
[1752311213993,48.82561,2966.5,2966.4,2.23833]
[1752311214895,48.1517,2966.5,2966.4,2.23833]
[1752311215389,48.82561,2966.5,2966.4,2.23833]
[1752311215995,48.1517,2966.5,2966.4,2.23833]
[1752311216198,48.82561,2966.5,2966.4,2.23833]
[1752311217099,48.1517,2966.5,2966.4,2.23833]
[1752311217297,48.82561,2966.5,2966.4,3.14363]
[1752311217997,47.189,2966.5,2966.4,3.14363]
[1752311218198,46.204,2966.5,2966.4,3.14363]
[1752311220789,2.61418,2966.7,2966.6,0.67389]
[1752311220994,49.45438,2966.7,2966.6,5.42339]
[1752311221196,49.45438,2966.7,2966.6,6.35139]
[1752311223296,49.45438,2966.7,2966.6,5.6775]
[1752311223496,1.33213,2966.5,2966.4,2.23832]
[1752311223696,49.45143,2966.5,2966.4,2.23832]
[1752311224097,48.7775,2966.5,2966.4,2.23832]
[1752311224598,48.7775,2966.5,2966.4,3.14362]
[1752311225803,49.45141,2966.5,2966.4,2.23833]
[1752311226103,3.27243,2966.4,2966.3,5.44613]
[1752311226302,0.6582,2966.1,2966.0,3.8818]
[1752311226506,1.33225,2965.9,2965.8,2.42768853]
[1752311226802,1.33225,2965.9,2965.8,3.06408853]
[1752311226803,50.28906584,2965.9,2965.8,3.06408853]
[1752311226996,50.28906584,2965.9,2965.8,2.42768853]
[1752311227392,2.30987,2965.8,2965.7,5.63548853]
[1752311227600,3.27257,2965.8,2965.7,5.63548853]
[1752311228001,3.27257,2965.8,2965.7,3.88189]
[1752311228706,3.27257,2965.8,2965.7,3.2078]
[1752311230100,3.27257,2965.8,2965.7,3.88189]
[1752311230302,3.27257,2965.8,2965.7,3.2078]
[1752311231002,2.5985,2965.5,2965.4,4.7722]
[1752311231303,0.6582,2965.4,2965.3,1.31058]
[1752311231507,2.5985,2965.4,2965.3,3.14388]
[1752311232304,3.27266,2965.4,2965.3,3.14388]
[1752311232504,2.5985,2965.4,2965.3,3.14388]
[1752311233908,1.6358,2965.4,2965.3,3.14388]
[1752311234406,2.5338,2965.4,2965.3,3.14388]
[1752311238115,3.20796,2965.4,2965.3,3.14388]
[1752311238311,2.5338,2965.4,2965.3,3.14388]
[1752311240414,1.6358,2965.4,2965.3,3.14388]
[1752311241105,46.178,2965.5,2965.4,1.30306]
[1752311241403,47.1596,2965.5,2965.4,6.43016]
[1752311241604,48.0576,2965.5,2965.4,6.43016]
[1752311243517,47.1596,2965.5,2965.4,6.43016]
[1752311244115,48.0576,2965.5,2965.4,6.43016]
[1752311244618,46.178,2965.5,2965.4,7.27067584]
[1752311244826,46.178,2965.5,2965.4,6.43016]
[1752311245021,1.6342,2965.5,2965.4,6.43016]
[1752311245229,2.5322,2965.5,2965.4,6.43016]
[1752311246933,1.6342,2965.5,2965.4,6.43016]
[1752311247136,46.176,2965.6,2965.5,1.30304]
[1752311247331,47.1576,2965.6,2965.5,3.22234]
[1752311247823,48.72971,2965.6,2965.5,3.22234]
[1752311248634,48.0556,2965.6,2965.5,3.22234]
[1752311250131,48.72971,2965.6,2965.5,3.22234]
[1752311250931,48.0556,2965.6,2965.5,3.22234]
[1752311251533,48.72971,2965.6,2965.5,2.27404]
[1752311252034,48.0556,2965.6,2965.5,3.22234]
[1752311252234,1.32674,2965.5,2965.4,4.51085]
[1752311252436,2.30834,2965.5,2965.4,3.8367]
[1752311252634,3.20634,2965.5,2965.4,5.48186]
[1752311253337,3.20634,2965.5,2965.4,6.43016]
[1752311255237,2.5322,2965.5,2965.4,6.43016]
[1752311255936,3.20634,2965.5,2965.4,6.43016]
[1752311260036,3.20634,2965.5,2965.4,5.756]
[1752311260539,3.20634,2965.5,2965.4,6.43016]
[1752311261839,3.20634,2965.5,2965.4,5.756]
[1752311262840,3.20634,2965.5,2965.4,6.43016]
[1752311263133,3.20634,2965.5,2965.4,3.2078]
[1752311263740,3.25474,2965.5,2965.4,4.7866]
[1752311263940,3.25474,2965.5,2965.4,3.2078]
[1752311264531,3.25474,2965.5,2965.4,4.1577]
[1752311264740,3.25474,2965.5,2965.4,5.7405]
[1752311265143,3.25474,2965.5,2965.4,6.41466]
[1752311266442,2.5806,2965.5,2965.4,6.41466]
[1752311266742,1.6342,2965.5,2965.4,6.41466]
[1752311266939,46.176,2965.6,2965.4,6.41466]
[1752311266940,46.176,2965.6,2965.5,1.30864]
[1752311267143,46.96625785,2965.6,2965.5,3.18444]
[1752311267644,47.88595785,2965.6,2965.5,3.18444]
[1752311267945,47.0957,2965.6,2965.5,3.18444]
[1752311268644,46.176,2965.6,2965.5,3.18444]
[1752311269545,47.76981,2965.6,2965.5,3.18444]
[1752311269944,48.71621,2965.6,2965.5,3.18444]
[1752311271645,48.0421,2965.6,2965.5,3.18444]
[1752311272647,48.71621,2965.6,2965.5,3.18444]
[1752311275249,48.71621,2965.6,2965.5,2.5103]
[1752311275742,48.71621,2965.6,2965.5,3.18444]
[1752311277347,48.0421,2965.6,2965.5,3.18444]
[1752311277949,48.71621,2965.6,2965.5,3.18444]
[1752311279149,48.0421,2965.6,2965.5,3.18444]
[1752311279849,48.71621,2965.6,2965.5,3.18444]
[1752311280346,48.71621,2965.6,2965.5,2.5103]
[1752311280545,48.71621,2965.6,2965.5,2.25854]
[1752311280745,48.71621,2965.6,2965.5,0.6345]
[1752311280946,48.71621,2965.6,2965.4,1.30865]
[1752311280947,2.22284,2965.5,2965.4,1.30865]
[1752311281241,4.00975584,2965.5,2965.4,2.25855]
[1752311282252,4.00975584,2965.5,2965.4,3.18445]
[1752311282750,2.4951,2965.5,2965.4,3.18445]
[1752311283052,3.16924,2965.5,2965.4,3.18445]
[1752311283453,2.4951,2965.5,2965.4,3.18445]
[1752311283854,1.5487,2965.5,2965.4,3.18445]
[1752311284055,46.176,2965.6,2965.5,3.18444]
[1752311284349,46.176,2965.6,2965.5,4.02495584]
[1752311284853,46.176,2965.6,2965.5,3.18444]
[1752311285451,47.0957,2965.6,2965.5,3.18444]
[1752311285749,46.176,2965.6,2965.5,3.18444]
[1752311285949,2.4951,2965.8,2965.7,1.30859]
[1752311286253,49.43536783,2965.8,2965.7,3.18439]
[1752311286453,50.10943783,2965.8,2965.7,3.18439]
[1752311288958,49.43536783,2965.8,2965.7,3.18439]
[1752311289656,50.10943783,2965.8,2965.7,3.18439]
[1752311290061,50.10943783,2965.8,2965.7,2.25849]
[1752311290852,49.43536783,2965.8,2965.7,2.25849]
[1752311291058,49.43536783,2965.8,2965.7,3.18439]
[1752311295160,50.10943783,2965.8,2965.7,3.18439]
[1752311295760,49.43536783,2965.8,2965.7,3.18439]
[1752311296661,50.10943783,2965.8,2965.7,3.18439]
[1752311300566,50.10943783,2965.8,2965.7,2.5103]
[1752311300763,50.94995367,2965.8,2965.7,1.5844]
[1752311300957,3.16449,2965.7,2965.6,3.2078]
[1752311301158,2.25051,2965.6,2965.5,1.5309]
[1752311301364,50.13902584,2965.6,2965.5,1.5309]
[1752311301966,50.13902584,2965.6,2965.5,2.20504]
[1752311303167,50.13902584,2965.6,2965.5,1.5309]
[1752311303466,50.13902584,2965.6,2965.5,3.12024]
[1752311305165,49.29851,2965.6,2965.5,3.12024]
[1752311305768,49.29851,2965.6,2965.5,2.4461]
[1752311305963,49.29851,2965.6,2965.5,3.12024]
[1752311306366,49.29851,2965.6,2965.5,2.4461]
[1752311306569,49.29851,2965.6,2965.5,3.12024]
[1752311306868,49.29851,2965.6,2965.5,2.4461]
[1752311307057,47.7104,2965.6,2965.5,3.12024]
[1752311307262,46.134,2965.6,2965.5,3.12024]
[1752311307662,1.5381,2966.2,2966.1,3.1201]
[1752311307859,3.28368742,2966.2,2966.1,3.96061584]
[1752311308267,2.4904,2966.2,2966.1,3.96061584]
[1752311308468,46.129,2966.3,2966.2,3.12008]
[1752311309370,2.21199,2966.6,2966.5,0.67391]
[1752311309669,49.29329,2966.6,2966.5,6.32781]